Workbook

Sheet 計算書
U1: 以下の項目に入力してください
A2: 【育児休業手当金計算書】
U3: 記号
U4: 番号
U5: 氏名
A6: １ | B6: 標準報酬日額 標準報酬月額×1/22
D7: =IF(V16="",V10,V16) -> 0 | E7: 円 | G7: ×1/22 | O7: = | Q7: =IF(D7="","",ROUND(D7*1/22,-1)) -> 0 | R7: 円 | S7: （A） | U7: 出産日 | Y7: =IF(V7="","",(DATE(MID(V7,2,2)+2018,MID(V7,4,2),RIGHT(V7,2)))) ->  | Z7: =IF(V7="","",EDATE(Y7,18)) ->  | AA7: =IF(V7="","",INT(5&0&(YEAR(Z7)-2018)&IF(MONTH(Z7)<10,0&MONTH(Z7),MONTH(Z7))&IF(DAY(Z7)<10,0&DAY(Z7),DAY(Z7)))) -> 
Q8: （10円未満四捨五入）
U9: ↓ 育児休業を新規で取得された方用
A10: ２ 育児休業手当金（日額） | U10: 標準報酬月額
B11: ①育児休業をした期間が180日に達するまで | Q11: =IF((IF(V19="",Y11,Y19))<設定!C3,IF(Q14<Q19,Q14,Q19),"") ->  | R11: =IF(Q11="","","←(R"&YEAR(設定!C3-1)-2018&"."&MONTH(設定!C3-1)&"."&DAY(設定!C3-1)&"まで)") ->  | U11: 育児休業開始日 | Y11: =IF(V11="","",(DATE(MID(V11,2,2)+2018,MID(V11,4,2),RIGHT(V11,2)))) -> 
Q12: =IF(Q7="","",IF(Q14<Q20,Q14,Q20)) -> 0 | R12: 円 | S12: （B）※ | U12: 請求の末日 | Y12: =IF(V12="","",(DATE(MID(V12,2,2)+2018,MID(V12,4,2),RIGHT(V12,2)))) -> 
C13: 標準報酬日額（A）×給付率 67/100
D14: =IF(Q7="","",Q7) -> 0 | E14: 円 | G14: ×67/100 | O14: = | Q14: =ROUNDDOWN(D14*67/100,0) -> 0 | R14: 円 | S14: （B1） | U14: ↓ 育児休業を再取得、延長された方用
Q15: （円未満切捨て） | U15: ※ 再取得、延長期間分の支給額が計算されます。
B16: 給付上限相当額 | U16: 標準報酬月額
C17: 雇用保険法第１７条第４項第２号ハに定める額に相当する額（当該額が同法第１８条の | U17: 当初育児休業開始日 | Y17: =IF(V17="","",(DATE(MID(V17,2,2)+2018,MID(V17,4,2),RIGHT(V17,2)))) -> 
C18: 規定により変更された場合には、当該変更された後の額）×30×67/100×1/22 | U18: 当初請求の末日 | Y18: =IF(V18="","",(DATE(MID(V18,2,2)+2018,MID(V18,4,2),RIGHT(V18,2)))) -> 
D19: =IF((IF(Y19="",Y11,Y19))<設定!C3,IF(Y17="",IF(Y11="","",IF(Y11<設定!C2,"",設定!E2)),IF(Y17<設定!C2,"",設定!E2)),"") ->  | Q19: =IF((IF(Y19="",Y11,Y19))<設定!C3,ROUNDDOWN(D19*30*67/100*1/22,0),"") ->  | R19: =IF(Q19="","","←(R"&YEAR(設定!C3-1)-2018&"."&MONTH(設定!C3-1)&"."&DAY(設定!C3-1)&"まで)") ->  | U19: 再取得育児休業開始日 | Y19: =IF(V19="","",(DATE(MID(V19,2,2)+2018,MID(V19,4,2),RIGHT(V19,2)))) -> 
D20: =設定!E3 -> 15690 | E20: 円 | G20: ×30×67/100×1/22 | O20: = | Q20: =IF(D20="","",ROUNDDOWN(D20*30*67/100*1/22,0)) -> 14334 | R20: 円 | S20: （B2） | U20: 再取得に係る請求の末日 | Y20: =IF(V20="","",(DATE(MID(V20,2,2)+2018,MID(V20,4,2),RIGHT(V20,2)))) -> 
Q21: （円未満切捨て）
B22: ※B1＜B2の場合・・・B=B1
B23: B1≧B2の場合・・・B=B2
B25: ②育児休業をした期間が通算180日経過後 | Q25: =IF((IF(Y19="",Y11,Y19))<設定!C3,IF(Q28<Q33,Q28,Q33),"") ->  | R25: =IF(Q25="","","←(R"&YEAR(設定!C3-1)-2018&"."&MONTH(設定!C3-1)&"."&DAY(設定!C3-1)&"まで)") -> 
Q26: =IF(D7="","",IF(Q28<Q34,Q28,Q34)) -> 0 | R26: 円 | S26: （C）※
C27: 標準報酬日額（A）×給付率 50/100
D28: =IF(Q7="","",Q7) -> 0 | E28: 円 | G28: ×50/100 | O28: = | Q28: =ROUNDDOWN(D28*1*50/100,0) -> 0 | R28: 円 | S28: （C1）
Q29: （円未満切捨て）
B30: 給付上限相当額
C31: 雇用保険法第１７条第４項第２号ハに定める額に相当する額（当該額が同法第１８条の
C32: 規定により変更された場合には、当該変更された後の額）×30×50/100×1/22
D33: =IF((IF(Y19="",Y11,Y19))<設定!C3,IF(Y17="",IF(Y11="","",IF(Y11<設定!C2,"",設定!E2)),IF(Y17<設定!C2,"",設定!E2)),"") ->  | Q33: =IF((IF(Y19="",Y11,Y19))<設定!C3,ROUNDDOWN(D33*30*50/100*1/22,0),"") ->  | R33: =IF(Q33="","","←(R"&YEAR(設定!C3-1)-2018&"."&MONTH(設定!C3-1)&"."&DAY(設定!C3-1)&"まで)") -> 
D34: =設定!E3 -> 15690 | E34: 円 | G34: ×30×50/100×1/22 | O34: = | Q34: =IF(D34="","",ROUNDDOWN(D34*30*50/100*1/22,0)) -> 10697 | R34: 円 | S34: （C2）
Q35: （円未満切捨て）
B36: ※C1＜C2の場合・・・C=C1
B37: C1≧C2の場合・・・C=C2
A39: ３ 育児休業手当金支給額
C40: （B）×給付率67/100の支給日数＋（C）×給付率50/100の支給日数
A41: =IF(D41="","","(R"&YEAR(設定!C3-1)-2018&"."&MONTH(設定!C3-1)&"."&DAY(設定!C3-1)&"まで)→") ->  | D41: =IF((IF(Y19="",Y11,Y19))<設定!C3,Q11,"") ->  | G41: =IF((IF(Y19="",Y11,Y19))<設定!C3,IF(V16="",設定!G12,設定!G22),"") ->  | J41: =IF((IF(Y19="",Y11,Y19))<設定!C3,Q25,"") ->  | M41: =IF((IF(Y19="",Y11,Y19))<設定!C3,IF(V16="",設定!G13,設定!G23),"") -> 
D42: =Q12 -> 0 | E42: 円 | F42: × | G42: =IF(V16="",設定!J12,設定!J22) -> 0 | H42: 日 | I42: ＋ | J42: =Q26 -> 0 | K42: 円 | L42: × | M42: =IF(V16="",設定!J13,設定!J23) -> 0 | N42: 日 | O42: = | P42: =IF(D41="",0,D41*G41+J41*M41)+(D42*G42+J42*M42) -> 0 | R42: 円

Sheet 計算書入力例(新規)
U1: 以下の項目に入力してください
A2: 【育児休業手当金計算書】
U3: 記号 | V3: 999
U4: 番号 | V4: 9999
U5: 氏名 | V5: 共済 太郎
A6: １ | B6: 標準報酬日額 標準報酬月額×1/22
D7: =IF(V16="",V10,V16) -> 320000 | E7: 円 | G7: ×1/22 | O7: = | Q7: =IF(D7="","",ROUND(D7*1/22,-1)) -> 14550 | R7: 円 | S7: （A） | U7: 出産日 | V7: 5061226 | Y7: =IF(V7="","",(DATE(MID(V7,2,2)+2018,MID(V7,4,2),RIGHT(V7,2)))) -> 2024-12-26 | Z7: =IF(V7="","",EDATE(Y7,18)) -> 2026-06-26 | AA7: =IF(V7="","",INT(5&0&(YEAR(Z7)-2018)&IF(MONTH(Z7)<10,0&MONTH(Z7),MONTH(Z7))&IF(DAY(Z7)<10,0&DAY(Z7),DAY(Z7)))) -> 5080626
Q8: （10円未満四捨五入）
U9: ↓ 育児休業を新規で取得された方用
A10: ２ 育児休業手当金（日額） | U10: 標準報酬月額 | V10: 320000
B11: ①育児休業をした期間が180日に達するまで | Q11: =IF((IF(V19="",Y11,Y19))<設定!C3,IF(Q14<Q19,Q14,Q19),"") ->  | R11: =IF(Q11="","","←(R"&YEAR(設定!C3-1)-2018&"."&MONTH(設定!C3-1)&"."&DAY(設定!C3-1)&"まで)") ->  | U11: 育児休業開始日 | V11: 5070221 | Y11: =IF(V11="","",(DATE(MID(V11,2,2)+2018,MID(V11,4,2),RIGHT(V11,2)))) -> 2025-02-21
Q12: =IF(Q7="","",IF(Q14<Q20,Q14,Q20)) -> 9748 | R12: 円 | S12: （B）※ | U12: 請求の末日 | V12: 5071225 | Y12: =IF(V12="","",(DATE(MID(V12,2,2)+2018,MID(V12,4,2),RIGHT(V12,2)))) -> 2025-12-25
C13: 標準報酬日額（A）×給付率 67/100
D14: =IF(Q7="","",Q7) -> 14550 | E14: 円 | G14: ×67/100 | O14: = | Q14: =ROUNDDOWN(D14*67/100,0) -> 9748 | R14: 円 | S14: （B1） | U14: ↓ 育児休業を再取得、延長された方用
Q15: （円未満切捨て） | U15: ※ 再取得、延長期間分の支給額が計算されます。
B16: 給付上限相当額 | U16: 標準報酬月額
C17: 雇用保険法第１７条第４項第２号ハに定める額に相当する額（当該額が同法第１８条の | U17: 当初育児休業開始日 | Y17: =IF(V17="","",(DATE(MID(V17,2,2)+2018,MID(V17,4,2),RIGHT(V17,2)))) -> 
C18: 規定により変更された場合には、当該変更された後の額）×30×67/100×1/22 | U18: 当初請求の末日 | Y18: =IF(V18="","",(DATE(MID(V18,2,2)+2018,MID(V18,4,2),RIGHT(V18,2)))) -> 
D19: =IF((IF(Y19="",Y11,Y19))<設定!C3,IF(Y17="",IF(Y11="","",IF(Y11<設定!C2,"",設定!E2)),IF(Y17<設定!C2,"",設定!E2)),"") ->  | Q19: =IF((IF(Y19="",Y11,Y19))<設定!C3,ROUNDDOWN(D19*30*67/100*1/22,0),"") ->  | R19: =IF(Q19="","","←(R"&YEAR(設定!C3-1)-2018&"."&MONTH(設定!C3-1)&"."&DAY(設定!C3-1)&"まで)") ->  | U19: 再取得育児休業開始日 | Y19: =IF(V19="","",(DATE(MID(V19,2,2)+2018,MID(V19,4,2),RIGHT(V19,2)))) -> 
D20: =設定!E3 -> 15690 | E20: 円 | G20: ×30×67/100×1/22 | O20: = | Q20: =IF(D20="","",ROUNDDOWN(D20*30*67/100*1/22,0)) -> 14334 | R20: 円 | S20: （B2） | U20: 再取得に係る請求の末日 | Y20: =IF(V20="","",(DATE(MID(V20,2,2)+2018,MID(V20,4,2),RIGHT(V20,2)))) -> 
Q21: （円未満切捨て）
B22: ※B1＜B2の場合・・・B=B1
B23: B1≧B2の場合・・・B=B2
B25: ②育児休業をした期間が通算180日経過後 | Q25: =IF((IF(Y19="",Y11,Y19))<設定!C3,IF(Q28<Q33,Q28,Q33),"") ->  | R25: =IF(Q25="","","←(R"&YEAR(設定!C3-1)-2018&"."&MONTH(設定!C3-1)&"."&DAY(設定!C3-1)&"まで)") -> 
Q26: =IF(D7="","",IF(Q28<Q34,Q28,Q34)) -> 7275 | R26: 円 | S26: （C）※
C27: 標準報酬日額（A）×給付率 50/100
D28: =IF(Q7="","",Q7) -> 14550 | E28: 円 | G28: ×50/100 | O28: = | Q28: =ROUNDDOWN(D28*1*50/100,0) -> 7275 | R28: 円 | S28: （C1）
Q29: （円未満切捨て）
B30: 給付上限相当額
C31: 雇用保険法第１７条第４項第２号ハに定める額に相当する額（当該額が同法第１８条の
C32: 規定により変更された場合には、当該変更された後の額）×30×50/100×1/22
D33: =IF((IF(Y19="",Y11,Y19))<設定!C3,IF(Y17="",IF(Y11="","",IF(Y11<設定!C2,"",設定!E2)),IF(Y17<設定!C2,"",設定!E2)),"") ->  | Q33: =IF((IF(Y19="",Y11,Y19))<設定!C3,ROUNDDOWN(D33*30*50/100*1/22,0),"") ->  | R33: =IF(Q33="","","←(R"&YEAR(設定!C3-1)-2018&"."&MONTH(設定!C3-1)&"."&DAY(設定!C3-1)&"まで)") -> 
D34: =設定!E3 -> 15690 | E34: 円 | G34: ×30×50/100×1/22 | O34: = | Q34: =IF(D34="","",ROUNDDOWN(D34*30*50/100*1/22,0)) -> 10697 | R34: 円 | S34: （C2）
Q35: （円未満切捨て）
B36: ※C1＜C2の場合・・・C=C1
B37: C1≧C2の場合・・・C=C2
A39: ３ 育児休業手当金支給額
C40: （B）×給付率67/100の支給日数＋（C）×給付率50/100の支給日数
A41: =IF(D41="","","(R"&YEAR(設定!C3-1)-2018&"."&MONTH(設定!C3-1)&"."&DAY(設定!C3-1)&"まで)→") ->  | D41: =IF((IF(Y19="",Y11,Y19))<設定!C3,Q11,"") ->  | G41: =IF((IF(Y19="",Y11,Y19))<'設定 (2)'!C3,IF(V16="",'設定 (2)'!G12,'設定 (2)'!G22),"") ->  | J41: =IF((IF(Y19="",Y11,Y19))<設定!C3,Q25,"") ->  | M41: =IF((IF(Y19="",Y11,Y19))<'設定 (2)'!C3,IF(V16="",'設定 (2)'!G13,'設定 (2)'!G23),"") -> 
D42: =Q12 -> 9748 | E42: 円 | F42: × | G42: =IF(V16="",'設定 (2)'!J12,'設定 (2)'!J22) -> 128 | H42: 日 | I42: ＋ | J42: =Q26 -> 7275 | K42: 円 | L42: × | M42: =IF(V16="",'設定 (2)'!J13,'設定 (2)'!J23) -> 92 | N42: 日 | O42: = | P42: =IF(D41="",0,D41*G41+J41*M41)+(D42*G42+J42*M42) -> 1917044 | R42: 円

Sheet 計算書入力例 (再取得)
U1: 以下の項目に入力してください
A2: 【育児休業手当金計算書】
U3: 記号 | V3: 999
U4: 番号 | V4: 9999
U5: 氏名 | V5: 共済 太郎
A6: １ | B6: 標準報酬日額 標準報酬月額×1/22
D7: =IF(V16="",V10,V16) -> 280000 | E7: 円 | G7: ×1/22 | O7: = | Q7: =IF(D7="","",ROUND(D7*1/22,-1)) -> 12730 | R7: 円 | S7: （A） | U7: 出産日 | V7: 5060528 | Y7: =IF(V7="","",(DATE(MID(V7,2,2)+2018,MID(V7,4,2),RIGHT(V7,2)))) -> 2024-05-28 | Z7: =IF(V7="","",EDATE(Y7,18)) -> 2025-11-28 | AA7: =IF(V7="","",INT(5&0&(YEAR(Z7)-2018)&IF(MONTH(Z7)<10,0&MONTH(Z7),MONTH(Z7))&IF(DAY(Z7)<10,0&DAY(Z7),DAY(Z7)))) -> 5071128
Q8: （10円未満四捨五入）
U9: ↓ 育児休業を新規で取得された方用
A10: ２ 育児休業手当金（日額） | U10: 標準報酬月額
B11: ①育児休業をした期間が180日に達するまで | Q11: =IF((IF(V19="",Y11,Y19))<設定!C3,IF(Q14<Q19,Q14,Q19),"") ->  | R11: =IF(Q11="","","←(R"&YEAR(設定!C3-1)-2018&"."&MONTH(設定!C3-1)&"."&DAY(設定!C3-1)&"まで)") ->  | U11: 育児休業開始日 | Y11: =IF(V11="","",(DATE(MID(V11,2,2)+2018,MID(V11,4,2),RIGHT(V11,2)))) -> 
Q12: =IF(Q7="","",IF(Q14<Q20,Q14,Q20)) -> 8529 | R12: 円 | S12: （B）※ | U12: 請求の末日 | Y12: =IF(V12="","",(DATE(MID(V12,2,2)+2018,MID(V12,4,2),RIGHT(V12,2)))) -> 
C13: 標準報酬日額（A）×給付率 67/100
D14: =IF(Q7="","",Q7) -> 12730 | E14: 円 | G14: ×67/100 | O14: = | Q14: =ROUNDDOWN(D14*67/100,0) -> 8529 | R14: 円 | S14: （B1） | U14: ↓ 育児休業を再取得、延長された方用
Q15: （円未満切捨て） | U15: ※ 再取得、延長期間分の支給額が計算されます。
B16: 給付上限相当額 | U16: 標準報酬月額 | V16: 280000
C17: 雇用保険法第１７条第４項第２号ハに定める額に相当する額（当該額が同法第１８条の | U17: 当初育児休業開始日 | V17: 5060627 | Y17: =IF(V17="","",(DATE(MID(V17,2,2)+2018,MID(V17,4,2),RIGHT(V17,2)))) -> 2024-06-27
C18: 規定により変更された場合には、当該変更された後の額）×30×67/100×1/22 | U18: 当初請求の末日 | V18: 5061220 | Y18: =IF(V18="","",(DATE(MID(V18,2,2)+2018,MID(V18,4,2),RIGHT(V18,2)))) -> 2024-12-20
D19: =IF((IF(Y19="",Y11,Y19))<設定!C3,IF(Y17="",IF(Y11="","",IF(Y11<設定!C2,"",設定!E2)),IF(Y17<設定!C2,"",設定!E2)),"") ->  | Q19: =IF((IF(Y19="",Y11,Y19))<設定!C3,ROUNDDOWN(D19*30*67/100*1/22,0),"") ->  | R19: =IF(Q19="","","←(R"&YEAR(設定!C3-1)-2018&"."&MONTH(設定!C3-1)&"."&DAY(設定!C3-1)&"まで)") ->  | U19: 再取得育児休業開始日 | V19: 5070204 | Y19: =IF(V19="","",(DATE(MID(V19,2,2)+2018,MID(V19,4,2),RIGHT(V19,2)))) -> 2025-02-04
D20: =設定!E3 -> 15690 | E20: 円 | G20: ×30×67/100×1/22 | O20: = | Q20: =IF(D20="","",ROUNDDOWN(D20*30*67/100*1/22,0)) -> 14334 | R20: 円 | S20: （B2） | U20: 再取得に係る請求の末日 | V20: 5070527 | Y20: =IF(V20="","",(DATE(MID(V20,2,2)+2018,MID(V20,4,2),RIGHT(V20,2)))) -> 2025-05-27
Q21: （円未満切捨て）
B22: ※B1＜B2の場合・・・B=B1
B23: B1≧B2の場合・・・B=B2
B25: ②育児休業をした期間が通算180日経過後 | Q25: =IF((IF(Y19="",Y11,Y19))<設定!C3,IF(Q28<Q33,Q28,Q33),"") ->  | R25: =IF(Q25="","","←(R"&YEAR(設定!C3-1)-2018&"."&MONTH(設定!C3-1)&"."&DAY(設定!C3-1)&"まで)") -> 
Q26: =IF(D7="","",IF(Q28<Q34,Q28,Q34)) -> 6365 | R26: 円 | S26: （C）※
C27: 標準報酬日額（A）×給付率 50/100
D28: =IF(Q7="","",Q7) -> 12730 | E28: 円 | G28: ×50/100 | O28: = | Q28: =ROUNDDOWN(D28*1*50/100,0) -> 6365 | R28: 円 | S28: （C1）
Q29: （円未満切捨て）
B30: 給付上限相当額
C31: 雇用保険法第１７条第４項第２号ハに定める額に相当する額（当該額が同法第１８条の
C32: 規定により変更された場合には、当該変更された後の額）×30×50/100×1/22
D33: =IF((IF(Y19="",Y11,Y19))<設定!C3,IF(Y17="",IF(Y11="","",IF(Y11<設定!C2,"",設定!E2)),IF(Y17<設定!C2,"",設定!E2)),"") ->  | Q33: =IF((IF(Y19="",Y11,Y19))<設定!C3,ROUNDDOWN(D33*30*50/100*1/22,0),"") ->  | R33: =IF(Q33="","","←(R"&YEAR(設定!C3-1)-2018&"."&MONTH(設定!C3-1)&"."&DAY(設定!C3-1)&"まで)") -> 
D34: =設定!E3 -> 15690 | E34: 円 | G34: ×30×50/100×1/22 | O34: = | Q34: =IF(D34="","",ROUNDDOWN(D34*30*50/100*1/22,0)) -> 10697 | R34: 円 | S34: （C2）
Q35: （円未満切捨て）
B36: ※C1＜C2の場合・・・C=C1
B37: C1≧C2の場合・・・C=C2
A39: ３ 育児休業手当金支給額
C40: （B）×給付率67/100の支給日数＋（C）×給付率50/100の支給日数
A41: =IF(D41="","","(R"&YEAR(設定!C3-1)-2018&"."&MONTH(設定!C3-1)&"."&DAY(設定!C3-1)&"まで)→") ->  | D41: =IF((IF(Y19="",Y11,Y19))<'設定 (3)'!C3,Q11,"") ->  | G41: =IF((IF(Y19="",Y11,Y19))<'設定 (3)'!C3,IF(V16="",'設定 (3)'!G12,'設定 (3)'!G22),"") ->  | J41: =IF((IF(Y19="",Y11,Y19))<'設定 (3)'!C3,Q25,"") ->  | M41: =IF((IF(Y19="",Y11,Y19))<'設定 (3)'!C3,IF(V16="",'設定 (3)'!G13,'設定 (3)'!G23),"") -> 
D42: =Q12 -> 8529 | E42: 円 | F42: × | G42: =IF(V16="",'設定 (3)'!J12,'設定 (3)'!J22) -> 3 | H42: 日 | I42: ＋ | J42: =Q26 -> 6365 | K42: 円 | L42: × | M42: =IF(V16="",'設定 (3)'!J13,'設定 (3)'!J23) -> 78 | N42: 日 | O42: = | P42: =IF(D41="",0,D41*G41+J41*M41)+(D42*G42+J42*M42) -> 522057 | R42: 円

Sheet 設定 (hidden)
A2: 雇用保険法第１８条第１項及び第２項により自動変更される額 | C2: 2023-08-01 | D2: 適用 | E2: 15430 | F2: 円 | G2: ①
C3: 2024-08-01 | D3: 適用 | E3: 15690 | F3: 円 | G3: ②
A5: 育児休業
B6: 開始日 | C6: =IF(計算書!V16="",計算書!Y11,計算書!Y17) -> 
B7: 終了日 | C7: =IF(計算書!V16="",計算書!Y12,計算書!Y18) -> 
B8: 180日到達日 | C8: =IF(OR(C6="",C7=""),"",IF((C7-C6+1)<180,"180日未満",C6+179)) -> 
A10: 日数等
B11: 育児休業期間 | C11: =IF(OR(C6="",C7=""),0,C7-C6+1) -> 0 | D11: 日
B12: 給付率67/100日数 | C12: =IF(OR(C6="",C7=""),0,IF(C8="180日未満",NETWORKDAYS(C6,C7),NETWORKDAYS(C6,C8))) -> 0 | D12: 日 | F12: ① | G12: =IF(OR(C6="",C7=""),0,IF(C8="180日未満",IF(C7<C3,NETWORKDAYS(C6,C7),IF(C6<C3,NETWORKDAYS(C6,C3-1),0)),IF(C7<C3,NETWORKDAYS(C6,C3-1),IF(C6<C3,IF(C8<C3,NETWORKDAYS(C6,C8),NETWORKDAYS(C6,C3-1)),0)))) -> 0 | H12: 日 | I12: ② | J12: =IF(OR(C6="",C7=""),0,IF(C8="180日未満",IF(C7<C3,0,IF(C6<C3,NETWORKDAYS(C3,C7),NETWORKDAYS(C6,C7))),IF(C7<C3,0,IF(C6<C3,IF(C8<C3,0,NETWORKDAYS(C3,C8)),NETWORKDAYS(C6,C8))))) -> 0 | K12: 日
B13: 給付率50/100日数 | C13: =IF(OR(C6="",C7=""),0,IF(OR(C8="180日未満",C7=C6+179),0,NETWORKDAYS(C8+1,C7))) -> 0 | D13: 日 | F13: ① | G13: =IF(OR(C6="",C7=""),0,IF(OR(C8="180日未満",C7=C6+179),0,IF(C7<C3,NETWORKDAYS(C8+1,C7),IF(C6<C3,IF(C8<C3,NETWORKDAYS(C8+1,C3-1),0),0)))) -> 0 | H13: 日 | I13: ② | J13: =IF(OR(C6="",C7=""),0,IF(OR(C8="180日未満",C7=C6+179),0,IF(C7<C3,0,IF(C6<C3,IF(C8<C3,NETWORKDAYS(C3,C7),NETWORKDAYS(C8+1,C7)),NETWORKDAYS(C8+1,C7))))) -> 0 | K13: 日
A15: 再取得
B16: 開始日 | C16: =IF(計算書!V16="","",計算書!Y19) -> 
B17: 終了日 | C17: =IF(計算書!V16="","",計算書!Y20) -> 
B18: 180日到達日 | C18: =IF(計算書!V16="","",IF(OR(C8="",C8="180日未満"),IF(((C7-C6+1)+(C17-C16+1))<180,"180日未満",C16+179-(C7-C6+1)),"×")) -> 
A20: 再取得日数等
B21: 育児休業期間 | C21: =IF(OR(C16="",C17=""),0,C17-C16+1) -> 0 | D21: 日
B22: 給付率67/100日数 | C22: =IF(OR(計算書!V16="",C18="×"),0,IF(C18="180日未満",NETWORKDAYS(C16,C17),NETWORKDAYS(C16,C18))) -> 0 | D22: 日 | F22: ① | G22: =IF(OR(計算書!V16="",C18="×"),0,IF(C18="180日未満",IF(C17<C3,NETWORKDAYS(C16,C17),IF(C16<C3,NETWORKDAYS(C16,C3-1),0)),IF(C17<C3,NETWORKDAYS(C16,C18),IF(C16<C3,IF(C18<C3,NETWORKDAYS(C16,C18),NETWORKDAYS(C16,C3-1)),0)))) -> 0 | H22: 日 | I22: ② | J22: =IF(OR(計算書!V16="",C18="×"),0,IF(C18="180日未満",IF(C17<C3,0,IF(C16<C3,NETWORKDAYS(C3,C17),NETWORKDAYS(C16,C17))),IF(C17<C3,0,IF(C16<C3,IF(C18<C3,0,NETWORKDAYS(C3,C18)),NETWORKDAYS(C16,C18))))) -> 0 | K22: 日
B23: 給付率50/100日数 | C23: =IF(計算書!V16="",0,IF(C18="180日未満",0,IF(C18="×",NETWORKDAYS(C16,C17),NETWORKDAYS(C18+1,C17)))) -> 0 | D23: 日 | F23: ① | G23: =IF(計算書!V16="",0,IF(C18="180日未満",0,IF(C18="×",IF(C17<C3,NETWORKDAYS(C16,C17),IF(C16<C3,NETWORKDAYS(C16,C3-1),0)),IF(C17<C3,NETWORKDAYS(C18+1,C17),IF(C16<C3,IF(C18<C3,NETWORKDAYS(C18+1,C3-1),0),0))))) -> 0 | H23: 日 | I23: ② | J23: =IF(計算書!V16="",0,IF(C18="180日未満",0,IF(C18="×",IF(C17<C3,0,IF(C16<C3,NETWORKDAYS(C3,C17),NETWORKDAYS(C16,C17))),IF(C17<C3,0,IF(C18<C3,IF(C18<C3,NETWORKDAYS(C3,C17),NETWORKDAYS(C18+1,C17)),NETWORKDAYS(C18+1,C17)))))) -> 0 | K23: 日

Sheet 設定 (2) (hidden)
A2: 雇用保険法第１８条第１項及び第２項により自動変更される額 | C2: 2023-08-01 | D2: 適用 | E2: 15430 | F2: 円 | G2: ①
C3: 2024-08-01 | D3: 適用 | E3: 15690 | F3: 円 | G3: ②
A5: 育児休業
B6: 開始日 | C6: =IF('計算書入力例(新規)'!V16="",'計算書入力例(新規)'!Y11,'計算書入力例(新規)'!Y17) -> 2025-02-21
B7: 終了日 | C7: =IF('計算書入力例(新規)'!V17="",'計算書入力例(新規)'!Y12,'計算書入力例(新規)'!Y18) -> 2025-12-25
B8: 180日到達日 | C8: =IF(OR(C6="",C7=""),"",IF((C7-C6+1)<180,"180日未満",C6+179)) -> 2025-08-19
A10: 日数等
B11: 育児休業期間 | C11: =IF(OR(C6="",C7=""),0,C7-C6+1) -> 308 | D11: 日
B12: 給付率67/100日数 | C12: =IF(OR(C6="",C7=""),0,IF(C8="180日未満",NETWORKDAYS(C6,C7),NETWORKDAYS(C6,C8))) -> 128 | D12: 日 | F12: ① | G12: =IF(OR(C6="",C7=""),0,IF(C8="180日未満",IF(C7<C3,NETWORKDAYS(C6,C7),IF(C6<C3,NETWORKDAYS(C6,C3-1),0)),IF(C7<C3,NETWORKDAYS(C6,C3-1),IF(C6<C3,IF(C8<C3,NETWORKDAYS(C6,C8),NETWORKDAYS(C6,C3-1)),0)))) -> 0 | H12: 日 | I12: ② | J12: =IF(OR(C6="",C7=""),0,IF(C8="180日未満",IF(C7<C3,0,IF(C6<C3,NETWORKDAYS(C3,C7),NETWORKDAYS(C6,C7))),IF(C7<C3,0,IF(C6<C3,IF(C8<C3,0,NETWORKDAYS(C3,C8)),NETWORKDAYS(C6,C8))))) -> 128 | K12: 日
B13: 給付率50/100日数 | C13: =IF(OR(C6="",C7=""),0,IF(OR(C8="180日未満",C7=C6+179),0,NETWORKDAYS(C8+1,C7))) -> 92 | D13: 日 | F13: ① | G13: =IF(OR(C6="",C7=""),0,IF(OR(C8="180日未満",C7=C6+179),0,IF(C7<C3,NETWORKDAYS(C8+1,C7),IF(C6<C3,IF(C8<C3,NETWORKDAYS(C8+1,C3-1),0),0)))) -> 0 | H13: 日 | I13: ② | J13: =IF(OR(C6="",C7=""),0,IF(OR(C8="180日未満",C7=C6+179),0,IF(C7<C3,0,IF(C6<C3,IF(C8<C3,NETWORKDAYS(C3,C7),NETWORKDAYS(C8+1,C7)),NETWORKDAYS(C8+1,C7))))) -> 92 | K13: 日
A15: 再取得
B16: 開始日 | C16: =IF('計算書入力例(新規)'!V16="","",'計算書入力例(新規)'!Y19) -> 
B17: 終了日 | C17: =IF('計算書入力例(新規)'!V16="","",'計算書入力例(新規)'!Y20) -> 
B18: 180日到達日 | C18: =IF('計算書入力例(新規)'!V16="","",IF(OR(C8="",C8="180日未満"),IF(((C7-C6+1)+(C17-C16+1))<180,"180日未満",C16+179-(C7-C6+1)),"×")) -> 
A20: 再取得日数等
B21: 育児休業期間 | C21: =IF(OR(C16="",C17=""),0,C17-C16+1) -> 0 | D21: 日
B22: 給付率67/100日数 | C22: =IF(OR('計算書入力例(新規)'!V16="",C18="×"),0,IF(C18="180日未満",NETWORKDAYS(C16,C17),NETWORKDAYS(C16,C18))) -> 0 | D22: 日 | F22: ① | G22: =IF(OR('計算書入力例(新規)'!V16="",C18="×"),0,IF(C18="180日未満",IF(C17<C3,NETWORKDAYS(C16,C17),IF(C16<C3,NETWORKDAYS(C16,C3-1),0)),IF(C17<C3,NETWORKDAYS(C16,C18),IF(C16<C3,IF(C18<C3,NETWORKDAYS(C16,C18),NETWORKDAYS(C16,C3-1)),0)))) -> 0 | H22: 日 | I22: ② | J22: =IF(OR('計算書入力例(新規)'!V16="",C18="×"),0,IF(C18="180日未満",IF(C17<C3,0,IF(C16<C3,NETWORKDAYS(C3,C17),NETWORKDAYS(C16,C17))),IF(C17<C3,0,IF(C16<C3,IF(C18<C3,0,NETWORKDAYS(C3,C18)),NETWORKDAYS(C16,C18))))) -> 0 | K22: 日
B23: 給付率50/100日数 | C23: =IF('計算書入力例(新規)'!V16="",0,IF(C18="180日未満",0,IF(C18="×",NETWORKDAYS(C16,C17),NETWORKDAYS(C18+1,C17)))) -> 0 | D23: 日 | F23: ① | G23: =IF('計算書入力例(新規)'!V16="",0,IF(C18="180日未満",0,IF(C18="×",IF(C17<C3,NETWORKDAYS(C16,C17),IF(C16<C3,NETWORKDAYS(C16,C3-1),0)),IF(C17<C3,NETWORKDAYS(C18+1,C17),IF(C16<C3,IF(C18<C3,NETWORKDAYS(C18+1,C3-1),0),0))))) -> 0 | H23: 日 | I23: ② | J23: =IF('計算書入力例(新規)'!V16="",0,IF(C18="180日未満",0,IF(C18="×",IF(C17<C3,0,IF(C16<C3,NETWORKDAYS(C3,C17),NETWORKDAYS(C16,C17))),IF(C17<C3,0,IF(C18<C3,IF(C18<C3,NETWORKDAYS(C3,C17),NETWORKDAYS(C18+1,C17)),NETWORKDAYS(C18+1,C17)))))) -> 0 | K23: 日

Sheet 設定 (3) (hidden)
A2: 雇用保険法第１８条第１項及び第２項により自動変更される額 | C2: 2023-08-01 | D2: 適用 | E2: 15430 | F2: 円 | G2: ①
C3: 2024-08-01 | D3: 適用 | E3: 15690 | F3: 円 | G3: ②
A5: 育児休業
B6: 開始日 | C6: =IF('計算書入力例 (再取得)'!V16="",'計算書入力例 (再取得)'!Y11,'計算書入力例 (再取得)'!Y17) -> 2024-06-27
B7: 終了日 | C7: =IF('計算書入力例 (再取得)'!V17="",'計算書入力例 (再取得)'!Y12,'計算書入力例 (再取得)'!Y18) -> 2024-12-20
B8: 180日到達日 | C8: =IF(OR(C6="",C7=""),"",IF((C7-C6+1)<180,"180日未満",C6+179)) -> 180日未満
A10: 日数等
B11: 育児休業期間 | C11: =IF(OR(C6="",C7=""),0,C7-C6+1) -> 177 | D11: 日
B12: 給付率67/100日数 | C12: =IF(OR(C6="",C7=""),0,IF(C8="180日未満",NETWORKDAYS(C6,C7),NETWORKDAYS(C6,C8))) -> 127 | D12: 日 | F12: ① | G12: =IF(OR(C6="",C7=""),0,IF(C8="180日未満",IF(C7<C3,NETWORKDAYS(C6,C7),IF(C6<C3,NETWORKDAYS(C6,C3-1),0)),IF(C7<C3,NETWORKDAYS(C6,C3-1),IF(C6<C3,IF(C8<C3,NETWORKDAYS(C6,C8),NETWORKDAYS(C6,C3-1)),0)))) -> 25 | H12: 日 | I12: ② | J12: =IF(OR(C6="",C7=""),0,IF(C8="180日未満",IF(C7<C3,0,IF(C6<C3,NETWORKDAYS(C3,C7),NETWORKDAYS(C6,C7))),IF(C7<C3,0,IF(C6<C3,IF(C8<C3,0,NETWORKDAYS(C3,C8)),NETWORKDAYS(C6,C8))))) -> 102 | K12: 日
B13: 給付率50/100日数 | C13: =IF(OR(C6="",C7=""),0,IF(OR(C8="180日未満",C7=C6+179),0,NETWORKDAYS(C8+1,C7))) -> 0 | D13: 日 | F13: ① | G13: =IF(OR(C6="",C7=""),0,IF(OR(C8="180日未満",C7=C6+179),0,IF(C7<C3,NETWORKDAYS(C8+1,C7),IF(C6<C3,IF(C8<C3,NETWORKDAYS(C8+1,C3-1),0),0)))) -> 0 | H13: 日 | I13: ② | J13: =IF(OR(C6="",C7=""),0,IF(OR(C8="180日未満",C7=C6+179),0,IF(C7<C3,0,IF(C6<C3,IF(C8<C3,NETWORKDAYS(C3,C7),NETWORKDAYS(C8+1,C7)),NETWORKDAYS(C8+1,C7))))) -> 0 | K13: 日
A15: 再取得
B16: 開始日 | C16: =IF('計算書入力例 (再取得)'!V16="","",'計算書入力例 (再取得)'!Y19) -> 2025-02-04
B17: 終了日 | C17: =IF('計算書入力例 (再取得)'!V16="","",'計算書入力例 (再取得)'!Y20) -> 2025-05-27
B18: 180日到達日 | C18: =IF('計算書入力例 (再取得)'!V16="","",IF(OR(C8="",C8="180日未満"),IF(((C7-C6+1)+(C17-C16+1))<180,"180日未満",C16+179-(C7-C6+1)),"×")) -> 2025-02-06
A20: 再取得日数等
B21: 育児休業期間 | C21: =IF(OR(C16="",C17=""),0,C17-C16+1) -> 113 | D21: 日
B22: 給付率67/100日数 | C22: =IF(OR('計算書入力例 (再取得)'!V16="",C18="×"),0,IF(C18="180日未満",NETWORKDAYS(C16,C17),NETWORKDAYS(C16,C18))) -> 3 | D22: 日 | F22: ① | G22: =IF(OR('計算書入力例 (再取得)'!V16="",C18="×"),0,IF(C18="180日未満",IF(C17<C3,NETWORKDAYS(C16,C17),IF(C16<C3,NETWORKDAYS(C16,C3-1),0)),IF(C17<C3,NETWORKDAYS(C16,C18),IF(C16<C3,IF(C18<C3,NETWORKDAYS(C16,C18),NETWORKDAYS(C16,C3-1)),0)))) -> 0 | H22: 日 | I22: ② | J22: =IF(OR('計算書入力例 (再取得)'!V16="",C18="×"),0,IF(C18="180日未満",IF(C17<C3,0,IF(C16<C3,NETWORKDAYS(C3,C17),NETWORKDAYS(C16,C17))),IF(C17<C3,0,IF(C16<C3,IF(C18<C3,0,NETWORKDAYS(C3,C18)),NETWORKDAYS(C16,C18))))) -> 3 | K22: 日
B23: 給付率50/100日数 | C23: =IF('計算書入力例 (再取得)'!V16="",0,IF(C18="180日未満",0,IF(C18="×",NETWORKDAYS(C16,C17),NETWORKDAYS(C18+1,C17)))) -> 78 | D23: 日 | F23: ① | G23: =IF('計算書入力例 (再取得)'!V16="",0,IF(C18="180日未満",0,IF(C18="×",IF(C17<C3,NETWORKDAYS(C16,C17),IF(C16<C3,NETWORKDAYS(C16,C3-1),0)),IF(C17<C3,NETWORKDAYS(C18+1,C17),IF(C16<C3,IF(C18<C3,NETWORKDAYS(C18+1,C3-1),0),0))))) -> 0 | H23: 日 | I23: ② | J23: =IF('計算書入力例 (再取得)'!V16="",0,IF(C18="180日未満",0,IF(C18="×",IF(C17<C3,0,IF(C16<C3,NETWORKDAYS(C3,C17),NETWORKDAYS(C16,C17))),IF(C17<C3,0,IF(C18<C3,IF(C18<C3,NETWORKDAYS(C3,C17),NETWORKDAYS(C18+1,C17)),NETWORKDAYS(C18+1,C17)))))) -> 78 | K23: 日
